bitfinex-derivatives/quotes_BTCF0:USTF0_20241208
["timestamp","ask_amount","ask_price","bid_price","bid_amount"]
[1733624702981,0.3608,100120.0,100100.0,0.0171016]
[1733624703183,0.3925,100120.0,100100.0,0.36229813]
[1733624703382,0.3925,100120.0,100100.0,0.37978188]
[1733624703583,0.39262547,100120.0,100110.0,0.00311798]
[1733624703880,0.39262547,100120.0,100110.0,0.00811798]
[1733624704181,0.48826446,100120.0,100110.0,0.00811798]
[1733624704582,0.48826446,100120.0,100110.0,0.00511798]
[1733624704784,0.84906446,100120.0,100110.0,0.00511798]
[1733624704983,0.84906446,100120.0,100110.0,0.01011798]
[1733624705179,1.14906446,100120.0,100110.0,0.01011798]
[1733624705584,1.15506446,100120.0,100110.0,0.00611798]
[1733624706389,1.15606446,100120.0,100110.0,0.00611798]
[1733624707185,1.15906446,100120.0,100110.0,0.00611798]
[1733624707983,1.15906446,100120.0,100110.0,0.006]
[1733624708193,1.15906446,100120.0,100110.0,9.8e-07]
[1733624708984,1.16904395,100120.0,100110.0,9.8e-07]
[1733624709294,1.16904395,100120.0,100110.0,4.5e-07]
[1733624710284,1.26468294,100120.0,100110.0,4.5e-07]
[1733624711986,1.38319861,100120.0,100110.0,4.5e-07]
[1733624712584,1.53299281,100120.0,100110.0,4.5e-07]
[1733624714594,1.43735382,100120.0,100110.0,4.5e-07]
[1733624715400,0.71575382,100120.0,100110.0,4.5e-07]
[1733624715690,1.45759942,100120.0,100110.0,4.5e-07]
[1733624716289,1.36889729,100120.0,100090.0,0.0149955]
[1733624716489,0.81723899,100100.0,100090.0,0.0049955]
[1733624716697,1.15287899,100100.0,100090.0,0.0049955]
[1733624716896,1.05724,100100.0,100090.0,0.0049955]
[1733624717194,0.33564,100100.0,100090.0,0.36591858]
[1733624717592,0.33564,100100.0,100090.0,0.00611858]
[1733624719299,0.33564,100100.0,100090.0,0.00711858]
[1733624719600,0.48763899,100110.0,100090.0,0.00711858]
[1733624722509,0.60626732,100110.0,100090.0,0.00711858]
[1733624722708,0.3608,100110.0,100090.0,0.49707903]
[1733624723012,0.3608,100110.0,100100.0,0.0616]
[1733624723513,0.47942833,100110.0,100100.0,0.0616]
[1733624723713,0.57506732,100110.0,100100.0,0.0616]
[1733624724211,0.45643899,100110.0,100100.0,0.0616]
[1733624724416,0.45943899,100110.0,100100.0,0.0616]
[1733624725114,0.46043899,100110.0,100100.0,0.0616]
[1733624727508,0.57906732,100110.0,100100.0,0.0616]
[1733624728412,0.57906732,100110.0,100100.0,0.06472133]
[1733624728710,0.72735273,100110.0,100100.0,0.06472133]
[1733624729408,0.63171374,100110.0,100100.0,0.06472131]
[1733624730209,0.63253786,100110.0,100100.0,0.06472131]
[1733624731310,0.57451407,100110.0,100100.0,0.06472131]
[1733624731710,0.81385015,100110.0,100100.0,0.06472131]
[1733624732413,0.81385015,100110.0,100100.0,0.06971543]
[1733624733912,0.90948914,100110.0,100100.0,0.06971543]
[1733624734510,0.45205015,100110.0,100100.0,0.16635442]
[1733624734817,0.20971407,100110.0,100100.0,0.51903899]
[1733624735018,0.20971407,100110.0,100100.0,0.52815424]
[1733624735213,0.32988402,100110.0,100100.0,0.53963877]
[1733624735408,0.32988402,100110.0,100100.0,0.53863877]
[1733624735619,0.33288402,100110.0,100100.0,0.53863877]
[1733624735810,0.33288402,100110.0,100100.0,0.17783877]
[1733624736013,0.33288402,100110.0,100100.0,0.53863877]
[1733624736420,0.15349114,100110.0,100100.0,0.53863877]
[1733624737316,0.15049114,100110.0,100100.0,0.53963877]
[1733624737815,0.14949114,100110.0,100100.0,0.54363877]
[1733624738017,0.14949114,100110.0,100100.0,0.54463734]
[1733624738323,0.26895469,100110.0,100100.0,0.54463734]
[1733624738818,0.26895469,100110.0,100100.0,0.54663734]
[1733624739412,0.12458902,100120.0,100100.0,0.96226782]
[1733624739608,0.12458902,100120.0,100110.0,0.45643899]
[1733624739609,0.11958902,100120.0,100110.0,0.45643899]
[1733624739815,0.00012547,100120.0,100110.0,0.47703734]
[1733624740121,0.00012547,100120.0,100110.0,0.65460929]
[1733624740717,0.00012547,100120.0,100110.0,0.89266782]
[1733624741316,0.00012547,100120.0,100110.0,0.884554]
[1733624741523,0.00012547,100120.0,100110.0,0.9935517]
[1733624741819,0.00012547,100120.0,100110.0,0.9945517]
[1733624742813,0.00012547,100120.0,100110.0,0.56096905]
[1733624743010,0.00012547,100120.0,100110.0,0.3833971]
[1733624744824,0.00012547,100120.0,100110.0,0.37091257]
[1733624745026,0.00012547,100120.0,100110.0,0.38339442]
[1733624745325,0.00012547,100120.0,100110.0,0.56096637]
[1733624745525,0.00012547,100120.0,100110.0,0.38339442]
[1733624746121,0.00012547,100120.0,100110.0,0.47903341]
[1733624746325,0.26908016,100120.0,100110.0,0.47903341]
[1733624746520,0.26908016,100120.0,100110.0,0.47903412]
[1733624746726,0.11958902,100120.0,100110.0,0.67455824]
[1733624746920,0.11958902,100120.0,100110.0,0.97455824]
[1733624747427,0.00012547,100120.0,100110.0,0.97455824]
[1733624747624,0.00012547,100120.0,100110.0,0.57891925]
[1733624748133,0.00012547,100120.0,100110.0,0.57080597]
[1733624748320,0.00012547,100120.0,100110.0,0.57891823]
[1733624748523,0.00012547,100120.0,100110.0,0.93281823]
[1733624749029,0.00012547,100120.0,100110.0,0.93681823]
[1733624750521,0.00012547,100120.0,100110.0,0.93881823]
[1733624750927,0.00012547,100120.0,100110.0,0.93070597]
[1733624751228,0.00012547,100120.0,100110.0,0.93881826]
[1733624751730,0.00012547,100120.0,100110.0,0.93881831]
[1733624753329,0.00012547,100120.0,100110.0,1.35444879]
[1733624754421,0.00012547,100120.0,100110.0,1.00054879]
[1733624754821,0.00012547,100120.0,100110.0,1.00054726]
[1733624755130,0.00012547,100120.0,100110.0,0.9799546]
[1733624755333,0.00012547,100120.0,100110.0,1.0005473]
[1733624756830,0.00012547,100120.0,100110.0,0.76248877]
[1733624757231,0.00012547,100120.0,100110.0,1.0005473]
[1733624757625,0.00012547,100120.0,100110.0,1.09618629]
[1733624757938,0.00012547,100120.0,100110.0,1.12728629]
[1733624758429,0.00012547,100120.0,100110.0,0.94971434]
[1733624758830,0.00012547,100120.0,100110.0,0.85407535]
[1733624759522,0.00012547,100120.0,100110.0,0.94971434]
[1733624759724,0.00012547,100120.0,100110.0,0.85407535]
[1733624760630,0.00012547,100120.0,100110.0,0.94971434]
[1733624761329,0.11958902,100120.0,100110.0,0.94971434]
[1733624761634,0.11958902,100120.0,100110.0,0.71165581]
[1733624762737,0.11958902,100120.0,100110.0,0.73173432]
[1733624763327,0.11958902,100120.0,100110.0,0.81408392]
[1733624764330,0.26908016,100120.0,100110.0,0.81408415]
[1733624764530,0.26908016,100120.0,100110.0,1.17488415]
[1733624765437,0.14961661,100120.0,100110.0,0.99689556]
[1733624766434,0.32900949,100120.0,100110.0,0.99689556]
[1733624767029,0.14961661,100120.0,100110.0,1.27052314]
[1733624767232,0.26921393,100120.0,100110.0,1.27052314]
[1733624767432,0.26921393,100120.0,100110.0,1.50858167]
[1733624767631,0.26921393,100120.0,100110.0,1.5435263]
[1733624768334,0.00012547,100120.0,100110.0,1.48494253]
[1733624768539,0.00012547,100120.0,100110.0,2.07747577]
[1733624769439,0.00012547,100120.0,100110.0,2.43137577]
[1733624770635,0.00012547,100120.0,100110.0,2.07747577]
[1733624770837,0.005,100130.0,100110.0,2.43504587]
[1733624771040,0.29408846,100140.0,100120.0,1.20335808]
[1733624771243,0.11959732,100140.0,100130.0,0.72090001]
[1733624771433,0.11959732,100140.0,100130.0,1.27948533]
[1733624772639,0.11959732,100140.0,100130.0,1.31236889]
[1733624773032,0.11959732,100140.0,100130.0,1.41223407]
[1733624773234,0.36988235,100150.0,100130.0,1.17451691]
[1733624773535,0.36488235,100150.0,100140.0,0.63636633]
[1733624773739,0.36488235,100150.0,100140.0,0.89463149]
[1733624774436,0.37088235,100150.0,100140.0,0.88215083]
[1733624774642,0.37088235,100150.0,100140.0,0.89462905]
[1733624774832,0.37288235,100150.0,100140.0,0.89562905]
[1733624775637,0.22339121,100150.0,100140.0,0.89562905]
[1733624776035,0.22539121,100150.0,100140.0,0.89562905]
[1733624776437,0.22539121,100150.0,100140.0,0.47970265]
[1733624776438,0.25528503,100150.0,100140.0,0.47970265]
[1733624777742,0.25528503,100150.0,100140.0,0.47808376]
[1733624778649,0.25528503,100150.0,100140.0,0.48786528]
[1733624779042,0.25528503,100150.0,100140.0,0.48786539]
[1733624781849,0.25528503,100150.0,100140.0,0.48799397]
[1733624782643,0.37478102,100150.0,100140.0,0.48799397]
[1733624783447,0.28518677,100150.0,100140.0,0.48799397]
[1733624784338,0.43454734,100150.0,100140.0,0.48799397]
[1733624784748,0.43454734,100150.0,100140.0,0.48961286]
[1733624785341,0.43454734,100150.0,100140.0,0.4798817]
[1733624785547,0.43454734,100150.0,100140.0,0.48961065]
[1733624785743,0.37194734,100150.0,100140.0,0.68515912]
[1733624785950,0.27893098,100150.0,100140.0,0.68515912]
[1733624786143,0.27893098,100150.0,100140.0,0.74514089]
[1733624786353,0.12957041,100150.0,100140.0,0.92339506]
[1733624786950,0.13872616,100170.0,100140.0,2.13329521]
[1733624787254,0.00016,100180.0,100160.0,1.58642029]
[1733624787451,0.00016,100180.0,100170.0,0.8445081]
[1733624787643,0.00016,100180.0,100170.0,0.60689042]
[1733624787845,0.34149288,100200.0,100170.0,1.18320318]
[1733624788140,0.37269288,100200.0,100190.0,0.81737327]
[1733624788445,0.1,100200.0,100190.0,0.83795822]
[1733624788937,0.1,100200.0,100190.0,0.47715822]
[1733624789142,0.1,100200.0,100190.0,0.38146495]
[1733624789342,0.1,100200.0,100190.0,0.47715822]
[1733624789942,0.103,100200.0,100190.0,0.47715822]
[1733624790338,0.103,100200.0,100190.0,0.57796359]
[1733624790746,9.235e-05,100220.0,100190.0,1.32755686]
[1733624790943,9.235e-05,100220.0,100210.0,0.45649327]
[1733624791150,9.235e-05,100220.0,100210.0,0.11635004]
[1733624791344,9.235e-05,100220.0,100210.0,0.10387989]
[1733624791647,9.235e-05,100220.0,100210.0,0.11635012]
[1733624791854,9.235e-05,100220.0,100210.0,0.47714911]
[1733624792358,9.235e-05,100220.0,100210.0,0.56446434]
[1733624792851,9.235e-05,100220.0,100210.0,8e-05]
[1733624793251,9.235e-05,100220.0,100210.0,0.36088]
[1733624793750,9.235e-05,100220.0,100210.0,0.36188]
[1733624794147,0.00309235,100220.0,100210.0,0.36188]
[1733624796453,0.00309235,100220.0,100210.0,0.45757327]
[1733624798149,0.00309235,100220.0,100210.0,0.36188]
[1733624798445,0.00309235,100220.0,100210.0,0.37188]
[1733624799959,0.00309235,100220.0,100210.0,0.37499755]
[1733624800163,0.00309235,100220.0,100210.0,0.47069082]
[1733624800455,0.00309235,100220.0,100210.0,0.48814915]
[1733624801258,0.00309235,100220.0,100210.0,0.39245588]
[1733624801557,0.00309235,100220.0,100210.0,0.48814915]
[1733624804453,0.00309235,100220.0,100210.0,0.11487891]
[1733624804658,0.00309235,100220.0,100210.0,0.12987891]
[1733624805161,0.36389235,100220.0,100210.0,0.03418564]
[1733624805356,0.36389235,100220.0,100210.0,0.02919755]
[1733624805549,0.36389235,100220.0,100210.0,0.02919778]
[1733624805749,0.00309235,100220.0,100210.0,0.02919778]
[1733624806459,0.00309235,100220.0,100210.0,0.02608]
[1733624806757,0.00309235,100220.0,100210.0,0.12489099]
[1733624807253,0.00309235,100220.0,100210.0,0.12987928]
[1733624808062,0.09210988,100220.0,100210.0,0.12987928]
[1733624808552,0.00309235,100220.0,100210.0,0.12987928]
[1733624810061,0.00309235,100220.0,100210.0,0.03418601]
[1733624810247,0.00309235,100220.0,100210.0,0.02919772]
[1733624810448,0.00309235,100220.0,100210.0,0.03418627]
[1733624810449,0.18248523,100220.0,100210.0,0.03418627]
[1733624810853,0.18248523,100220.0,100210.0,0.12987954]
[1733624811257,0.18248523,100220.0,100210.0,0.03418627]
[1733624811958,0.18248523,100220.0,100210.0,0.12987954]
[1733624812255,0.18248523,100220.0,100210.0,0.58235873]
[1733624812256,0.00309235,100220.0,100210.0,0.58235873]
[1733624812460,0.00309235,100220.0,100210.0,0.59046447]
[1733624812651,0.00309235,100220.0,100210.0,0.60293451]
[1733624812856,0.00309235,100220.0,100210.0,0.60462757]
[1733624812857,0.09231175,100220.0,100210.0,0.60462757]
[1733624813157,0.09231175,100220.0,100210.0,0.63502757]
[1733624813353,0.09231175,100220.0,100210.0,0.66371742]
[1733624813555,0.00309235,100220.0,100210.0,0.66371742]
[1733624814257,0.00309235,100220.0,100210.0,0.66771742]
[1733624814458,0.00309235,100220.0,100210.0,0.84567186]
[1733624814964,0.00309235,100220.0,100210.0,0.83756612]
[1733624815164,0.00309235,100220.0,100210.0,0.84728207]
[1733624815454,0.00309235,100220.0,100210.0,0.90660021]
[1733624815665,9.235e-05,100220.0,100210.0,0.90598868]
[1733624815860,9.235e-05,100220.0,100210.0,0.90760173]
[1733624816164,9.235e-05,100220.0,100210.0,0.90760164]
[1733624816458,9.235e-05,100220.0,100210.0,1.20527877]
[1733624816661,9.235e-05,100220.0,100210.0,1.49636699]
[1733624817567,9.235e-05,100220.0,100210.0,1.85012704]
[1733624819262,9.235e-05,100220.0,100210.0,1.85080069]
[1733624820463,9.235e-05,100220.0,100210.0,1.61366806]
[1733624820659,9.235e-05,100220.0,100210.0,1.51797479]
[1733624820968,9.235e-05,100220.0,100210.0,1.81790748]
[1733624821160,0.08931175,100220.0,100210.0,1.81790748]
[1733624821361,9.235e-05,100220.0,100210.0,1.81790748]
[1733624821564,0.14928065,100220.0,100210.0,0.99161609]
[1733624822469,0.14928065,100220.0,100210.0,0.99323147]
[1733624822866,0.14928065,100220.0,100210.0,1.05592461]
[1733624823171,0.14928065,100220.0,100210.0,1.05430923]
[1733624823463,9.235e-05,100220.0,100210.0,1.05430923]
[1733624823670,9.235e-05,100220.0,100210.0,0.70040923]
[1733624823869,9.235e-05,100220.0,100210.0,0.68793919]
[1733624824071,9.235e-05,100220.0,100210.0,0.70040785]
[1733624824271,9.235e-05,100220.0,100210.0,0.69230331]
[1733624824475,0.14933717,100220.0,100210.0,0.70040788]
[1733624825069,0.14933717,100220.0,100210.0,0.68793922]
[1733624825372,0.14933717,100220.0,100210.0,0.70040746]
[1733624826465,0.14933717,100220.0,100210.0,0.89821456]
[1733624827172,0.14933717,100220.0,100210.0,0.72032533]
[1733624827565,9.235e-05,100220.0,100210.0,0.89821456]
[1733624827761,0.14933717,100220.0,100210.0,0.72032533]
[1733624827967,0.14933717,100220.0,100210.0,0.69002533]
[1733624828168,0.14933717,100220.0,100210.0,0.65962533]
[1733624828575,0.14933717,100220.0,100210.0,0.65152121]
[1733624828873,9.235e-05,100220.0,100210.0,1.24813323]
[1733624829478,9.235e-05,100220.0,100210.0,1.48532659]
[1733624829767,9.235e-05,100220.0,100210.0,1.48532555]
[1733624829971,9.235e-05,100220.0,100210.0,1.48532071]
[1733624830569,9.235e-05,100220.0,100210.0,1.48533644]
[1733624831672,9.235e-05,100220.0,100210.0,1.4853654]
[1733624832178,9.235e-05,100220.0,100210.0,1.48567556]
[1733624833273,9.235e-05,100220.0,100210.0,1.46575769]
[1733624835374,9.235e-05,100220.0,100210.0,1.4657576]
[1733624835575,9.235e-05,100220.0,100210.0,1.40306446]
[1733624835776,0.03099235,100220.0,100210.0,1.40306446]
[1733624836076,0.03099235,100220.0,100210.0,1.4657576]
[1733624836777,0.03099235,100220.0,100210.0,0.81772405]
[1733624836778,0.12052013,100220.0,100210.0,0.81772405]
[1733624836979,0.03099235,100220.0,100210.0,1.05495622]
[1733624837198,0.03099235,100220.0,100210.0,0.81772405]
[1733624838598,0.18023717,100220.0,100210.0,0.8096194]
[1733624838793,0.03099235,100220.0,100210.0,1.05495637]
[1733624839296,0.03099235,100220.0,100210.0,1.05657343]
[1733624839501,0.14933717,100220.0,100210.0,1.05495637]
[1733624839700,9.235e-05,100220.0,100210.0,1.05495637]
[1733624840200,0.08969798,100220.0,100210.0,0.87694048]
[1733624840597,9.235e-05,100220.0,100210.0,0.87694048]
[1733624841599,0.14933717,100220.0,100210.0,1.46555906]
[1733624841794,0.14933717,100220.0,100210.0,1.46564642]
[1733624842211,0.14933717,100220.0,100210.0,1.46568799]
[1733624842704,9.235e-05,100220.0,100210.0,0.51432203]
[1733624842903,0.18023717,100220.0,100210.0,0.81475604]
[1733624843796,0.03099235,100220.0,100210.0,1.16713941]
[1733624844197,0.03099235,100220.0,100210.0,1.16875846]
[1733624844702,0.03099235,100220.0,100210.0,1.16713941]
[1733624845999,0.03099235,100220.0,100210.0,1.15467055]
[1733624846194,0.03099235,100220.0,100210.0,1.16713987]
[1733624846611,0.03099235,100220.0,100210.0,1.00466127]
[1733624846811,0.18023717,100220.0,100210.0,0.41291223]
[1733624847107,0.29985516,100220.0,100210.0,0.77371223]
[1733624847307,0.15061034,100220.0,100210.0,0.65064342]
[1733624847510,0.29985123,100220.0,100210.0,0.65064342]
[1733624847709,0.18023717,100220.0,100210.0,0.35416136]
[1733624848101,0.18023717,100220.0,100210.0,0.71496136]
[1733624848410,0.18023717,100220.0,100210.0,0.35416433]
[1733624848603,0.29984574,100220.0,100210.0,0.94485351]
[1733624849409,0.29984574,100220.0,100210.0,0.94647256]
[1733624849713,0.29984574,100220.0,100210.0,0.94485351]
[1733624849904,0.29984574,100220.0,100210.0,0.94647256]
[1733624850110,0.29984574,100220.0,100210.0,1.30727256]
[1733624850608,0.29984574,100220.0,100210.0,1.24449942]
[1733624850802,0.18023717,100220.0,100210.0,0.5323723]
[1733624851907,0.03099235,100220.0,100210.0,0.11635017]
[1733624852209,0.25885762,100220.0,100210.0,0.46904537]
[1733624852401,0.21036901,100220.0,100210.0,0.47876906]
[1733624852601,0.21036901,100220.0,100210.0,0.46629974]
[1733624852811,0.21036901,100220.0,100210.0,0.65705736]
[1733624853205,0.35982764,100220.0,100210.0,0.81953596]
[1733624853405,0.35982764,100220.0,100210.0,0.81791759]
[1733624855206,0.35982764,100220.0,100210.0,1.05565175]
[1733624856013,0.14955098,100220.0,100210.0,1.05565175]
[1733624856518,0.26911763,100220.0,100210.0,1.09056216]
[1733624857312,0.26911763,100220.0,100210.0,1.09044974]
[1733624858815,0.08975748,100220.0,100210.0,1.67060757]
[1733624859315,0.08975748,100220.0,100210.0,1.54522129]
[1733624859613,0.08975748,100220.0,100210.0,1.63569597]
[1733624860012,0.08975748,100220.0,100210.0,1.63569453]
[1733624860414,0.08975748,100220.0,100210.0,1.22868045]
[1733624860618,0.08975748,100220.0,100210.0,1.58445892]
[1733624863321,0.08975748,100220.0,100210.0,1.58948045]
[1733624863921,0.08975748,100220.0,100210.0,1.46409417]
[1733624864120,0.08975748,100220.0,100210.0,1.58948045]
[1733624864811,0.08975748,100220.0,100210.0,1.94525892]
[1733624866206,0.08975748,100220.0,100210.0,1.22365911]
[1733624866517,0.08975748,100220.0,100210.0,1.58948064]
[1733624867116,0.08975748,100220.0,100210.0,1.5813762]
[1733624867314,0.08975748,100220.0,100210.0,1.51868306]
[1733624867514,0.08975748,100220.0,100210.0,1.51431956]
[1733624867715,0.08975748,100220.0,100210.0,1.52678818]
[1733624868621,0.08975748,100220.0,100210.0,1.54664934]
[1733624868819,0.08975748,100220.0,100210.0,1.90242781]
[1733624870718,0.08975748,100220.0,100210.0,1.89744052]
[1733624870914,0.08975748,100220.0,100210.0,1.90242801]
[1733624871816,0.08975748,100220.0,100210.0,1.54162801]
[1733624872820,0.23952413,100220.0,100210.0,1.40358131]
[1733624874129,0.17975098,100220.0,100210.0,0.9927266]
[1733624874424,0.17975098,100220.0,100210.0,0.99272714]
[1733624875221,0.17975098,100220.0,100210.0,0.98025786]
[1733624875425,0.17975098,100220.0,100210.0,0.99272714]
[1733624877829,0.17975098,100220.0,100210.0,0.98025786]
[1733624878130,0.17975098,100220.0,100210.0,0.99272714]
[1733624880931,0.14985723,100220.0,100210.0,1.40555688]
[1733624881526,0.14985723,100220.0,100210.0,1.16796395]
[1733624883729,0.14985723,100220.0,100210.0,1.15985891]
[1733624883925,0.14985723,100220.0,100210.0,1.16796393]
[1733624884526,0.23954343,100220.0,100210.0,1.16796393]
[1733624884725,0.14985723,100220.0,100210.0,1.16796393]
[1733624885026,0.23954415,100220.0,100210.0,1.16796393]
[1733624887032,0.23954415,100220.0,100210.0,1.16796368]
[1733624887430,0.23954415,100220.0,100210.0,1.15549441]
[1733624887732,0.23954415,100220.0,100210.0,1.16796329]
[1733624888031,0.14985723,100220.0,100210.0,1.16796339]
[1733624889032,0.35912764,100220.0,100210.0,0.99295997]
[1733624889828,0.35912764,100220.0,100210.0,0.75523156]
[1733624890232,0.20966901,100220.0,100210.0,0.39443156]
[1733624890433,0.20966901,100220.0,100210.0,0.75523156]
[1733624890639,0.35917134,100220.0,100210.0,0.99296021]
[1733624890825,0.35917134,100220.0,100210.0,0.83048161]
[1733624891031,0.20966901,100220.0,100210.0,0.29464634]
[1733624891225,0.20966901,100220.0,100210.0,0.65544634]
[1733624891539,0.20966901,100220.0,100210.0,0.53237475]
[1733624891738,0.20966901,100220.0,100210.0,0.29464634]
[1733624891933,0.20966901,100220.0,100210.0,0.89317475]
[1733624892132,0.20966901,100220.0,100210.0,0.7552318]
[1733624893931,0.20966901,100220.0,100210.0,0.75523226]
[1733624896130,0.2994096,100220.0,100210.0,1.40611448]
[1733624896535,0.2994096,100220.0,100210.0,1.40611897]
[1733624897439,0.2994096,100220.0,100210.0,1.40611884]
[1733624900442,0.17980193,100220.0,100210.0,1.40611884]
[1733624900948,0.17980193,100220.0,100210.0,1.40611905]
[1733624903944,0.17980193,100220.0,100210.0,1.40660099]
[1733624904147,0.25815552,100220.0,100210.0,0.75530882]
[1733624904340,0.20966901,100220.0,100210.0,0.75530911]
[1733624905552,0.14964164,100220.0,100210.0,0.81466474]
[1733624906050,0.14964175,100220.0,100210.0,0.81466474]
[1733624906444,0.14964276,100220.0,100210.0,0.81466474]
[1733624906844,0.1496452,100220.0,100210.0,0.81466474]
[1733624907046,9.235e-05,100220.0,100210.0,0.81466474]
[1733624907546,9.235e-05,100220.0,100210.0,0.79408992]
[1733624907745,9.235e-05,100220.0,100210.0,0.81466431]
[1733624910359,0.22795444,100220.0,100210.0,0.99304287]
[1733624910558,0.17946901,100220.0,100210.0,0.75531446]
[1733624910744,0.22795527,100220.0,100210.0,0.39451446]
[1733624911055,0.14964925,100220.0,100210.0,1.04600684]
[1733624911258,0.14964925,100220.0,100210.0,1.40680684]
[1733624911552,0.26929391,100220.0,100210.0,1.40680684]
[1733624913053,0.30149391,100220.0,100210.0,1.40680684]
[1733624913253,0.18184925,100220.0,100210.0,1.40680684]
[1733624913649,0.30148965,100220.0,100210.0,1.11161068]
[1733624913850,0.18184925,100220.0,100210.0,1.40642746]
[1733624914457,0.18184925,100220.0,100210.0,1.40655069]
[1733624914653,0.18184925,100220.0,100210.0,1.39844536]
[1733624914853,0.30149265,100220.0,100210.0,1.16869857]
[1733624917664,0.18184925,100220.0,100210.0,1.16869857]
[1733624918650,0.18184925,100220.0,100210.0,1.16859798]
[1733624919650,0.18184925,100220.0,100210.0,1.16859822]
[1733624920053,0.18184925,100220.0,100210.0,1.16889318]
[1733624921254,0.18184925,100220.0,100210.0,1.16889325]
[1733624924759,0.18184925,100220.0,100210.0,1.16889276]
[1733624925058,0.30152748,100220.0,100210.0,1.16889276]
[1733624925362,0.30152748,100220.0,100210.0,0.80809276]
[1733624925363,0.18184925,100220.0,100210.0,0.80809276]
[1733624925560,0.18184925,100220.0,100210.0,1.16889276]
[1733624926059,0.03229235,100220.0,100210.0,1.28827117]
[1733624926259,0.24123509,100220.0,100210.0,0.65557646]
[1733624926559,0.24123509,100220.0,100210.0,0.47715047]
[1733624926962,0.24123509,100220.0,100210.0,0.65557646]
[1733624927263,0.03229235,100220.0,100210.0,0.23208332]
[1733624927460,0.03229235,100220.0,100210.0,0.29477646]
[1733624927763,0.03229235,100220.0,100210.0,0.65557646]
[1733624927952,0.03229235,100220.0,100210.0,0.65557685]
[1733624928347,0.28972299,100220.0,100210.0,0.65245979]
[1733624928552,0.03229235,100220.0,100210.0,0.65557729]
[1733624929373,0.28972281,100220.0,100210.0,0.65557729]
[1733624929560,0.24123509,100220.0,100210.0,0.65557729]
[1733624929956,0.24123509,100220.0,100210.0,0.1163513]
[1733624930156,0.24123509,100220.0,100210.0,0.65557729]
[1733624930762,0.24123509,100220.0,100210.0,0.4771513]
[1733624931178,0.24123509,100220.0,100210.0,0.1163513]
[1733624931480,0.24123509,100220.0,100210.0,0.11635174]
[1733624932579,0.03229235,100220.0,100210.0,0.11635174]
[1733624932974,0.03229235,100220.0,100210.0,0.29477773]
[1733624933182,0.03229235,100220.0,100210.0,0.11635174]
[1733624933877,0.03229235,100220.0,100210.0,0.47715174]
[1733624934076,0.03229235,100220.0,100210.0,0.65557773]
[1733624934275,0.18185794,100220.0,100210.0,1.01199552]
[1733624934485,0.18185794,100220.0,100210.0,0.94739117]
[1733624934670,0.36133665,100220.0,100210.0,0.71504981]
[1733624934981,0.18185794,100220.0,100210.0,0.71504974]
[1733624935177,0.18185794,100220.0,100210.0,1.01199542]
[1733624935483,0.18185794,100220.0,100210.0,0.71504974]
[1733624935675,0.18185794,100220.0,100210.0,1.0119953]
[1733624937974,0.18185794,100220.0,100210.0,0.71504962]
[1733624938774,0.18185794,100220.0,100210.0,0.71006157]
[1733624938976,0.2693063,100220.0,100210.0,1.23265755]
[1733624939181,0.2693063,100220.0,100210.0,1.61993602]
[1733624939478,0.2094754,100220.0,100210.0,1.70585538]
[1733624939679,0.2094754,100220.0,100210.0,2.00341802]
[1733624939884,0.08982704,100220.0,100210.0,1.70631253]
[1733624940374,9.235e-05,100220.0,100210.0,1.82618649]
[1733624940575,9.235e-05,100220.0,100210.0,1.86109547]
[1733624940780,9.235e-05,100220.0,100210.0,2.21499547]
[1733624941275,0.2094754,100220.0,100210.0,2.10123785]
[1733624941474,0.2094754,100220.0,100210.0,2.00273499]
[1733624941675,0.2094754,100220.0,100210.0,1.64631347]
[1733624942481,0.2094754,100220.0,100210.0,1.918681]
[1733624943981,0.2094754,100220.0,100210.0,1.89810561]
[1733624944283,0.2094754,100220.0,100210.0,1.91867711]
[1733624944481,0.08982704,100220.0,100210.0,1.91867711]
[1733624946295,0.08982704,100220.0,100210.0,1.62561161]
[1733624947383,0.08982704,100220.0,100210.0,1.50662156]
[1733624947583,0.08982704,100220.0,100210.0,1.29368471]
[1733624948083,0.08982704,100220.0,100210.0,0.93288471]
[1733624948280,0.08982704,100220.0,100210.0,1.83250745]
[1733624949177,9.235e-05,100220.0,100210.0,2.41410057]
[1733624950287,9.235e-05,100220.0,100210.0,2.36235392]
[1733624950877,9.235e-05,100220.0,100210.0,2.36235379]
[1733624951083,9.235e-05,100220.0,100210.0,2.3623311]
[1733624951986,9.235e-05,100220.0,100210.0,2.38229428]
[1733624952387,9.235e-05,100220.0,100210.0,2.256908]
[1733624952683,9.235e-05,100220.0,100210.0,2.38229428]
[1733624954192,3.5e-07,100220.0,100210.0,2.47526535]
[1733624954379,3.5e-07,100220.0,100210.0,2.09193303]
[1733624955589,3.5e-07,100220.0,100210.0,2.44835455]
[1733624955777,3.5e-07,100220.0,100210.0,2.44676633]
[1733624957992,3.5e-07,100220.0,100210.0,2.43429906]
[1733624958291,3.5e-07,100220.0,100210.0,2.44676483]
[1733624958588,3.5e-07,100220.0,100210.0,2.49659509]
[1733624959283,3.5e-07,100220.0,100210.0,2.85218293]
[1733624960083,0.28368305,100250.0,100210.0,2.85218293]
[1733624960289,0.15403469,100250.0,100240.0,0.66396776]
[1733624960488,0.12193469,100250.0,100240.0,0.76879774]
[1733624960690,0.0322,100250.0,100240.0,1.21579088]
[1733624960880,0.0322,100250.0,100240.0,1.25286826]
[1733624961082,0.0322,100250.0,100240.0,1.25286444]
[1733624961285,0.0322,100250.0,100240.0,1.25299184]
[1733624961990,0.0322,100250.0,100240.0,1.25399184]
[1733624963392,0.0322,100250.0,100240.0,1.25299184]
[1733624964397,0.12193469,100250.0,100240.0,1.17300786]
[1733624964699,0.12193469,100250.0,100240.0,1.01595022]
[1733624965294,0.12193469,100250.0,100240.0,0.98555022]
[1733624965600,0.15463469,100250.0,100240.0,0.98555022]
[1733624967294,0.15463469,100250.0,100240.0,1.17318322]
[1733624967497,0.15463469,100250.0,100240.0,0.99555956]
[1733624967689,0.27428305,100250.0,100240.0,0.99555956]
[1733624967889,0.27428305,100250.0,100240.0,0.50817192]
[1733624968184,0.27428305,100250.0,100240.0,0.64166018]
[1733624968796,0.18454836,100250.0,100240.0,0.64166018]
[1733624968996,0.27399945,100250.0,100240.0,0.81928384]
[1733624969193,0.39680709,100250.0,100240.0,0.41650338]
[1733624969490,0.39680709,100250.0,100220.0,0.63842266]
[1733624969491,0.3939443,100250.0,100220.0,0.88002384]
[1733624969693,0.23896844,100240.0,100230.0,0.3608]
[1733624969998,0.23896844,100240.0,100230.0,0.46055559]
[1733624970198,0.23896844,100240.0,100230.0,0.3608]
[1733624970395,0.23896844,100240.0,100230.0,0.46063936]
[1733624970899,0.23896844,100240.0,100230.0,0.5233325]
[1733624971098,0.29906184,100240.0,100230.0,0.5233325]
[1733624971296,0.11968782,100240.0,100230.0,0.70095616]
[1733624971489,0.11968782,100240.0,100230.0,0.93999814]
[1733624977489,0.11968782,100240.0,100230.0,0.76237448]
[1733624979290,0.14949625,100240.0,100230.0,0.7032938]
[1733624979505,0.14949625,100240.0,100230.0,0.70828042]
[1733624980501,0.11929625,100240.0,100230.0,0.77097356]
[1733624981001,0.11929625,100240.0,100230.0,0.83005424]
[1733624981198,0.0895226,100240.0,100230.0,0.86165424]
[1733624981403,0.20881885,100240.0,100230.0,0.86477046]
[1733624981899,0.20881885,100240.0,100230.0,0.80207673]